[Event "Titled Tuesday Blitz March 28 Early 2023"]
[White "Defend1r"]
[Black "Cherniaiev, Tykhon"]
[BlackFideId "14182360"]
[WhiteElo "2548"]
[BlackElo "2450"]
[Result "0-1"]
[Round "08"]
[TimeControl "180+2"]
[Date "2023.03.28"]
[WhiteClock "0:00:15"]
[BlackClock "0:00:07"]

1. e4 {[%clk 0:02:54]}  e5 {[%clk 0:02:57]} 2. Nf3 {[%clk 0:02:50]}  Nc6 {[%clk 0:02:58]} 3. Bc4 {[%clk 0:02:49]}  Nf6 {[%clk 0:02:57]} 4. d4 {[%clk 0:02:49]}  exd4 {[%clk 0:02:57]} 5. e5 {[%clk 0:02:50]}  d5 {[%clk 0:02:57]} 6. Bb5 {[%clk 0:02:51]}  Ne4 {[%clk 0:02:57]} 7. Nxd4 {[%clk 0:02:51]}  Bc5 {[%clk 0:02:51]} 8. Be3 {[%clk 0:02:51]}  Bxd4 {[%clk 0:02:33]} 9. Bxd4 {[%clk 0:02:04]}  Qg5 {[%clk 0:02:32]} 10. O-O {[%clk 0:01:56]}  Bh3 {[%clk 0:02:19]} 11. Qf3 {[%clk 0:01:52]}  Bg4 {[%clk 0:02:17]} 12. Qe3 {[%clk 0:01:46]}  Qg6 {[%clk 0:01:51]} 13. Bxc6+ {[%clk 0:01:45]}  bxc6 {[%clk 0:01:50]} 14. f3 {[%clk 0:01:39]}  Bh3 {[%clk 0:01:50]} 15. Qe2 {[%clk 0:01:31]}  Ng5 {[%clk 0:01:49]} 16. Kh1 {[%clk 0:00:57]}  Bf5 {[%clk 0:01:35]} 17. Na3 {[%clk 0:00:43]}  Ne6 {[%clk 0:01:35]} 18. Be3 {[%clk 0:00:41]}  d4 {[%clk 0:01:33]} 19. Bd2 {[%clk 0:00:41]}  h5 {[%clk 0:01:07]} 20. Bb4 {[%clk 0:00:38]}  a5 {[%clk 0:01:02]} 21. Be1 {[%clk 0:00:28]}  d3 {[%clk 0:00:53]} 22. Qd2 {[%clk 0:00:28]}  dxc2 {[%clk 0:00:51]} 23. Bf2 {[%clk 0:00:26]}  Rd8 {[%clk 0:00:47]} 24. Qxa5 {[%clk 0:00:25]}  Nf4 {[%clk 0:00:29]} 25. Bg3 {[%clk 0:00:24]}  Ne2 {[%clk 0:00:28]} 26. Bf2 {[%clk 0:00:25]}  h4 {[%clk 0:00:22]} 27. Qa4 {[%clk 0:00:24]}  h3 {[%clk 0:00:16]} 28. g3 {[%clk 0:00:23]}  c1=Q {[%clk 0:00:11]} 29. Raxc1 {[%clk 0:00:22]}  Nxc1 {[%clk 0:00:12]} 30. Rxc1 {[%clk 0:00:22]}  O-O {[%clk 0:00:13]} 31. Nc4 {[%clk 0:00:19]}  Bd3 {[%clk 0:00:09]} 32. Ne3 {[%clk 0:00:18]}  Be2 {[%clk 0:00:09]} 33. Qf4 {[%clk 0:00:17]}  c5 {[%clk 0:00:08]} 34. Re1 {[%clk 0:00:17]}  Rd4 {[%clk 0:00:07]} 35. Qf5 {[%clk 0:00:17]}  Qxf5 {[%clk 0:00:07]} 36. Nxf5 {[%clk 0:00:18]}  Bxf3+ {[%clk 0:00:08]} 37. Kg1 {[%clk 0:00:18]}  Rd2 {[%clk 0:00:07]} 38. Bxc5 {[%clk 0:00:19]}  Rg2+ {[%clk 0:00:06]} 39. Kf1 {[%clk 0:00:18]}  Rd8 {[%clk 0:00:06]} 40. Bd4 {[%clk 0:00:18]}  Bg4 {[%clk 0:00:05]} 41. Bg1 {[%clk 0:00:18]}  Bxf5 {[%clk 0:00:05]} 42. e6 {[%clk 0:00:14]}  Bd3+ {[%clk 0:00:05]} 43. Re2 {[%clk 0:00:14]}  Bxe2+ {[%clk 0:00:06]} 44. Ke1 {[%clk 0:00:15]}  Rd1# {[%clk 0:00:07]} 0-1


[Site "https://www.chess.com"]

[Event "Titled Tuesday Blitz March 28 Early 2023"]
[White "Koellner, Ruben Gideon"]
[Black "Korchmar, Vasiliy"]
[WhiteFideId "12993093"]
[BlackFideId "24131750"]
[WhiteElo "2303"]
[BlackElo "2370"]
[Result "1-0"]
[Round "08"]
[TimeControl "180+2"]
[Date "2023.03.28"]
[WhiteClock "0:01:33"]
[BlackClock "0:00:03"]

1. d4 {[%clk 0:03:00]}  d5 {[%clk 0:02:59]} 2. Nf3 {[%clk 0:03:00]}  Nf6 {[%clk 0:02:59]} 3. Nbd2 {[%clk 0:03:00]}  Bg4 {[%clk 0:02:57]} 4. e3 {[%clk 0:03:00]}  e6 {[%clk 0:02:57]} 5. h3 {[%clk 0:03:00]}  Bh5 {[%clk 0:02:57]} 6. g4 {[%clk 0:03:00]}  Bg6 {[%clk 0:02:57]} 7. Ne5 {[%clk 0:03:00]}  Nfd7 {[%clk 0:02:46]} 8. Nxg6 {[%clk 0:03:00]}  hxg6 {[%clk 0:02:46]} 9. Bg2 {[%clk 0:03:01]}  c5 {[%clk 0:02:40]} 10. c4 {[%clk 0:03:01]}  cxd4 {[%clk 0:02:23]} 11. exd4 {[%clk 0:03:02]}  Nc6 {[%clk 0:02:16]} 12. cxd5 {[%clk 0:03:01]}  exd5 {[%clk 0:01:57]} 13. O-O {[%clk 0:03:00]}  Bd6 {[%clk 0:01:50]} 14. Re1+ {[%clk 0:03:00]}  Kf8 {[%clk 0:01:50]} 15. Nb1 {[%clk 0:02:51]}  Qf6 {[%clk 0:01:45]} 16. Be3 {[%clk 0:02:50]}  Re8 {[%clk 0:01:31]} 17. Nc3 {[%clk 0:02:49]}  Nb6 {[%clk 0:01:32]} 18. a4 {[%clk 0:02:45]}  a5 {[%clk 0:01:12]} 19. Qd3 {[%clk 0:02:45]}  Kg8 {[%clk 0:00:58]} 20. Qb5 {[%clk 0:02:38]}  Bc7 {[%clk 0:00:26]} 21. Nxd5 {[%clk 0:02:38]}  Nxd5 {[%clk 0:00:26]} 22. Qxd5 {[%clk 0:02:36]}  Nb4 {[%clk 0:00:15]} 23. Qxb7 {[%clk 0:02:12]}  Qd6 {[%clk 0:00:15]} 24. Rac1 {[%clk 0:02:12]}  Qh2+ {[%clk 0:00:11]} 25. Kf1 {[%clk 0:02:12]}  Bd6 {[%clk 0:00:05]} 26. Rc8 {[%clk 0:02:05]}  Rxc8 {[%clk 0:00:05]} 27. Qxc8+ {[%clk 0:02:05]}  Kh7 {[%clk 0:00:05]} 28. Qb7 {[%clk 0:02:02]}  Re8 {[%clk 0:00:05]} 29. Qxf7 {[%clk 0:02:00]}  Re7 {[%clk 0:00:04]} 30. Qf3 {[%clk 0:01:55]}  Nc2 {[%clk 0:00:04]} 31. Re2 {[%clk 0:01:52]}  Nb4 {[%clk 0:00:04]} 32. Bf4 {[%clk 0:01:40]}  Rxe2 {[%clk 0:00:03]} 33. Bxh2 {[%clk 0:01:33]} 1-0


[Site "https://www.chess.com"]

[Event "Titled Tuesday Blitz March 28 Early 2023"]
[White "Skvortsov, Andrei"]
[Black "Girya, Olga"]
[WhiteFideId "24108600"]
[BlackFideId "4195752"]
[WhiteElo "2259"]
[BlackElo "2263"]
[Result "0-1"]
[Round "08"]
[TimeControl "180+2"]
[Date "2023.03.28"]
[WhiteClock "0:00:11"]
[BlackClock "0:00:03"]

1. e4 {[%clk 0:03:00]}  e5 {[%clk 0:02:59]} 2. Nf3 {[%clk 0:02:59]}  Nc6 {[%clk 0:02:59]} 3. d4 {[%clk 0:02:54]}  exd4 {[%clk 0:02:59]} 4. Nxd4 {[%clk 0:02:55]}  Nf6 {[%clk 0:02:59]} 5. Nxc6 {[%clk 0:02:54]}  bxc6 {[%clk 0:02:59]} 6. e5 {[%clk 0:02:52]}  Qe7 {[%clk 0:02:59]} 7. Qe2 {[%clk 0:02:51]}  Nd5 {[%clk 0:02:58]} 8. c4 {[%clk 0:02:51]}  Ba6 {[%clk 0:02:58]} 9. f4 {[%clk 0:02:45]}  d6 {[%clk 0:02:17]} 10. b3 {[%clk 0:02:24]}  dxe5 {[%clk 0:01:48]} 11. Ba3 {[%clk 0:02:18]}  Nb4 {[%clk 0:01:37]} 12. fxe5 {[%clk 0:02:08]}  O-O-O {[%clk 0:01:36]} 13. Qe4 {[%clk 0:01:36]}  Nc2+ {[%clk 0:01:13]} 14. Qxc2 {[%clk 0:01:32]}  Qxe5+ {[%clk 0:01:13]} 15. Be2 {[%clk 0:01:31]}  Bxa3 {[%clk 0:01:09]} 16. O-O {[%clk 0:01:24]}  Bc5+ {[%clk 0:01:09]} 17. Kh1 {[%clk 0:01:23]}  Bd4 {[%clk 0:01:02]} 18. Rf5 {[%clk 0:01:12]}  Qe3 {[%clk 0:00:50]} 19. Na3 {[%clk 0:01:12]}  Bxa1 {[%clk 0:00:48]} 20. Rf3 {[%clk 0:01:07]}  Qe5 {[%clk 0:00:37]} 21. b4 {[%clk 0:00:59]}  Rhe8 {[%clk 0:00:34]} 22. Bd3 {[%clk 0:00:52]}  Bd4 {[%clk 0:00:19]} 23. Qa4 {[%clk 0:00:45]}  Bb7 {[%clk 0:00:19]} 24. Nc2 {[%clk 0:00:38]}  c5 {[%clk 0:00:18]} 25. Rf5 {[%clk 0:00:31]}  Qxf5 {[%clk 0:00:14]} 26. Bxf5+ {[%clk 0:00:30]}  Kb8 {[%clk 0:00:15]} 27. Bg4 {[%clk 0:00:20]}  Bc3 {[%clk 0:00:12]} 28. h4 {[%clk 0:00:16]}  cxb4 {[%clk 0:00:11]} 29. Qb5 {[%clk 0:00:13]}  a6 {[%clk 0:00:07]} 30. Qc5 {[%clk 0:00:13]}  Rd2 {[%clk 0:00:07]} 31. Bf3 {[%clk 0:00:12]}  Bxf3 {[%clk 0:00:06]} 32. Nxb4 {[%clk 0:00:10]}  Rd1+ {[%clk 0:00:05]} 33. Kh2 {[%clk 0:00:10]}  Bxb4 {[%clk 0:00:04]} 34. Qxb4+ {[%clk 0:00:10]}  Bb7 {[%clk 0:00:05]} 35. Qa4 {[%clk 0:00:10]}  Red8 {[%clk 0:00:04]} 36. c5 {[%clk 0:00:10]}  R1d4 {[%clk 0:00:04]} 37. Qb3 {[%clk 0:00:09]}  Rxh4+ {[%clk 0:00:04]} 38. Kg3 {[%clk 0:00:10]}  Rhd4 {[%clk 0:00:04]} 39. c6 {[%clk 0:00:10]}  Rd3+ {[%clk 0:00:02]} 40. Qxd3 {[%clk 0:00:10]}  Rxd3+ {[%clk 0:00:02]} 41. Kf2 {[%clk 0:00:11]}  Bxc6 {[%clk 0:00:03]} 0-1


[Site "https://www.chess.com"]

[Event "Titled Tuesday Blitz March 28 Early 2023"]
[White "Rendle, Thomas E"]
[Black "Cori T., Deysi"]
[WhiteFideId "408760"]
[BlackFideId "3801934"]
[WhiteElo "2428"]
[BlackElo "2292"]
[Result "0-1"]
[Round "08"]
[TimeControl "180+2"]
[Date "2023.03.28"]
[WhiteClock "0:00:04"]
[BlackClock "0:00:14"]

1. e4 {[%clk 0:02:54]}  e6 {[%clk 0:02:59]} 2. d4 {[%clk 0:02:52]}  d5 {[%clk 0:03:00]} 3. e5 {[%clk 0:02:53]}  c5 {[%clk 0:03:00]} 4. c3 {[%clk 0:02:54]}  Nc6 {[%clk 0:03:00]} 5. Nf3 {[%clk 0:02:54]}  Nge7 {[%clk 0:03:00]} 6. Na3 {[%clk 0:02:53]}  Bd7 {[%clk 0:03:00]} 7. Nc2 {[%clk 0:02:52]}  Rc8 {[%clk 0:02:58]} 8. h4 {[%clk 0:02:47]}  b5 {[%clk 0:02:51]} 9. dxc5 {[%clk 0:02:44]}  Ng6 {[%clk 0:02:47]} 10. Bxb5 {[%clk 0:02:34]}  Bxc5 {[%clk 0:02:44]} 11. Bxc6 {[%clk 0:02:26]}  Bxc6 {[%clk 0:02:44]} 12. h5 {[%clk 0:02:25]}  Ne7 {[%clk 0:02:41]} 13. h6 {[%clk 0:02:22]}  gxh6 {[%clk 0:02:41]} 14. Ncd4 {[%clk 0:02:22]}  Qc7 {[%clk 0:02:33]} 15. Bxh6 {[%clk 0:02:12]}  Rg8 {[%clk 0:02:32]} 16. g3 {[%clk 0:01:57]}  Bb7 {[%clk 0:01:25]} 17. Qd3 {[%clk 0:01:41]}  Ng6 {[%clk 0:01:21]} 18. Rh5 {[%clk 0:01:36]}  Qb6 {[%clk 0:01:18]} 19. O-O-O {[%clk 0:01:27]}  Ba6 {[%clk 0:01:18]} 20. Qc2 {[%clk 0:01:21]}  Qa5 {[%clk 0:01:17]} 21. Kb1 {[%clk 0:01:18]}  Bc4 {[%clk 0:01:12]} 22. Nb3 {[%clk 0:01:08]}  Qa6 {[%clk 0:01:05]} 23. Nfd4 {[%clk 0:00:32]}  Bb6 {[%clk 0:00:51]} 24. Bc1 {[%clk 0:00:29]}  Rg7 {[%clk 0:00:42]} 25. f4 {[%clk 0:00:28]}  Nf8 {[%clk 0:00:39]} 26. f5 {[%clk 0:00:26]}  Bxd4 {[%clk 0:00:38]} 27. Rxd4 {[%clk 0:00:25]}  Rxg3 {[%clk 0:00:38]} 28. Ka1 {[%clk 0:00:20]}  Rg1 {[%clk 0:00:29]} 29. Rd1 {[%clk 0:00:20]}  Rxd1 {[%clk 0:00:27]} 30. Qxd1 {[%clk 0:00:21]}  Be2 {[%clk 0:00:27]} 31. Qh1 {[%clk 0:00:22]}  Bxh5 {[%clk 0:00:24]} 32. Qxh5 {[%clk 0:00:22]}  Qd3 {[%clk 0:00:20]} 33. fxe6 {[%clk 0:00:22]}  Nxe6 {[%clk 0:00:21]} 34. a3 {[%clk 0:00:18]}  Rb8 {[%clk 0:00:19]} 35. Nd2 {[%clk 0:00:11]}  Qc2 {[%clk 0:00:19]} 36. Qh1 {[%clk 0:00:10]}  Nc5 {[%clk 0:00:15]} 37. Ka2 {[%clk 0:00:08]}  Nd3 {[%clk 0:00:15]} 38. Nb3 {[%clk 0:00:06]}  Qxb3+ {[%clk 0:00:14]} 39. Ka1 {[%clk 0:00:06]}  Qc2 {[%clk 0:00:14]} 40. e6 {[%clk 0:00:04]}  Qxc1+ {[%clk 0:00:13]} 41. Qxc1 {[%clk 0:00:04]}  Nxc1 {[%clk 0:00:14]} 0-1


[Site "https://www.chess.com"]

[Event "Titled Tuesday Blitz March 28 Early 2023"]
[White "Hamitevici, Vladimir"]
[Black "Alinasab, Mobina"]
[WhiteFideId "13902393"]
[BlackFideId "12528897"]
[WhiteElo "2401"]
[BlackElo "2141"]
[Result "1-0"]
[Round "08"]
[TimeControl "180+2"]
[Date "2023.03.28"]
[WhiteClock "0:00:29"]
[BlackClock "0:00:05"]

1. e4 {[%clk 0:02:59]}  c5 {[%clk 0:02:59]} 2. d4 {[%clk 0:02:56]}  cxd4 {[%clk 0:02:58]} 3. c3 {[%clk 0:02:57]}  d3 {[%clk 0:02:58]} 4. c4 {[%clk 0:02:57]}  d6 {[%clk 0:02:52]} 5. Nc3 {[%clk 0:02:55]}  e6 {[%clk 0:02:53]} 6. Bxd3 {[%clk 0:02:48]}  Nf6 {[%clk 0:02:53]} 7. Be3 {[%clk 0:02:46]}  b6 {[%clk 0:02:51]} 8. Rc1 {[%clk 0:02:41]}  Bb7 {[%clk 0:02:51]} 9. f4 {[%clk 0:02:40]}  Nbd7 {[%clk 0:02:47]} 10. Qf3 {[%clk 0:02:31]}  a6 {[%clk 0:02:45]} 11. Nh3 {[%clk 0:02:18]}  Be7 {[%clk 0:02:42]} 12. Nf2 {[%clk 0:02:16]}  Qc7 {[%clk 0:02:40]} 13. g4 {[%clk 0:02:12]}  g6 {[%clk 0:02:28]} 14. h4 {[%clk 0:02:07]}  Rc8 {[%clk 0:01:45]} 15. h5 {[%clk 0:02:04]}  gxh5 {[%clk 0:01:43]} 16. g5 {[%clk 0:02:02]}  Ng4 {[%clk 0:01:43]} 17. Nxg4 {[%clk 0:01:59]}  hxg4 {[%clk 0:01:44]} 18. Qxg4 {[%clk 0:01:58]}  Nb8 {[%clk 0:01:09]} 19. Ke2 {[%clk 0:01:46]}  Nc6 {[%clk 0:01:03]} 20. Nd5 {[%clk 0:01:44]}  exd5 {[%clk 0:00:57]} 21. cxd5 {[%clk 0:01:45]}  Qd7 {[%clk 0:00:51]} 22. Qxd7+ {[%clk 0:01:38]}  Kxd7 {[%clk 0:00:52]} 23. dxc6+ {[%clk 0:01:35]}  Bxc6 {[%clk 0:00:49]} 24. Bd4 {[%clk 0:01:31]}  Rhf8 {[%clk 0:00:41]} 25. Rxh7 {[%clk 0:01:30]}  b5 {[%clk 0:00:39]} 26. e5 {[%clk 0:01:23]}  Bf3+ {[%clk 0:00:24]} 27. Kd2 {[%clk 0:01:24]}  Rxc1 {[%clk 0:00:20]} 28. Bf5+ {[%clk 0:01:24]}  Kc6 {[%clk 0:00:17]} 29. Kxc1 {[%clk 0:01:25]}  Kd5 {[%clk 0:00:16]} 30. Bc3 {[%clk 0:01:17]}  dxe5 {[%clk 0:00:17]} 31. Bxe5 {[%clk 0:01:10]}  Bc5 {[%clk 0:00:16]} 32. Kd2 {[%clk 0:01:02]}  Bb4+ {[%clk 0:00:16]} 33. Ke3 {[%clk 0:01:02]}  Bd1 {[%clk 0:00:14]} 34. Be4+ {[%clk 0:00:59]}  Ke6 {[%clk 0:00:12]} 35. Bd4 {[%clk 0:00:59]}  Rd8 {[%clk 0:00:07]} 36. f5+ {[%clk 0:00:54]}  Kd6 {[%clk 0:00:07]} 37. Rxf7 {[%clk 0:00:47]}  Re8 {[%clk 0:00:07]} 38. g6 {[%clk 0:00:37]}  Bc2 {[%clk 0:00:06]} 39. Rf6+ {[%clk 0:00:35]}  Kd7 {[%clk 0:00:06]} 40. Re6 {[%clk 0:00:35]}  Bxe4 {[%clk 0:00:05]} 41. Rxe8 {[%clk 0:00:29]} 1-0


[Site "https://www.chess.com"]

[Event "Titled Tuesday Blitz March 28 Early 2023"]
[White "Zhao, Jun"]
[Black "Osinenko, Anton"]
[WhiteFideId "8602522"]
[BlackFideId "4158970"]
[WhiteElo "2547"]
[BlackElo "2294"]
[Result "1-0"]
[Round "08"]
[TimeControl "180+2"]
[Date "2023.03.28"]
[WhiteClock "0:01:28"]
[BlackClock "0:01:12"]

1. Nf3 {[%clk 0:02:56]}  c5 {[%clk 0:02:59]} 2. g3 {[%clk 0:02:53]}  g6 {[%clk 0:02:59]} 3. Bg2 {[%clk 0:02:54]}  Bg7 {[%clk 0:02:59]} 4. O-O {[%clk 0:02:55]}  e6 {[%clk 0:03:00]} 5. d4 {[%clk 0:02:54]}  cxd4 {[%clk 0:03:00]} 6. Nxd4 {[%clk 0:02:54]}  Nc6 {[%clk 0:02:56]} 7. Nb5 {[%clk 0:02:53]}  d5 {[%clk 0:02:56]} 8. c4 {[%clk 0:02:47]}  a6 {[%clk 0:02:34]} 9. cxd5 {[%clk 0:02:45]}  exd5 {[%clk 0:02:35]} 10. N5c3 {[%clk 0:02:39]}  d4 {[%clk 0:02:35]} 11. Nd5 {[%clk 0:02:38]}  Be6 {[%clk 0:02:28]} 12. Nf4 {[%clk 0:02:36]}  Bd7 {[%clk 0:02:26]} 13. Nd3 {[%clk 0:02:20]}  Qb6 {[%clk 0:02:20]} 14. Na3 {[%clk 0:02:19]}  Be6 {[%clk 0:02:08]} 15. Nf4 {[%clk 0:02:14]}  Bf5 {[%clk 0:02:04]} 16. Nc4 {[%clk 0:02:13]}  Qc7 {[%clk 0:02:04]} 17. Nd5 {[%clk 0:02:12]}  Qd8 {[%clk 0:02:00]} 18. Bf4 {[%clk 0:02:10]}  g5 {[%clk 0:01:32]} 19. Bc7 {[%clk 0:01:50]}  Qd7 {[%clk 0:01:23]} 20. Ncb6 {[%clk 0:01:45]}  Qe6 {[%clk 0:01:15]} 21. Nxa8 {[%clk 0:01:42]}  Nge7 {[%clk 0:01:12]} 22. Nab6 {[%clk 0:01:28]} 1-0


[Site "https://www.chess.com"]

[Event "Titled Tuesday Blitz March 28 Early 2023"]
[White "Tregubov, Pavel V."]
[Black "Hajiyev, Kanan"]
[WhiteFideId "4115341"]
[BlackFideId "13404148"]
[WhiteElo "2425"]
[BlackElo "2103"]
[Result "0-1"]
[Round "08"]
[TimeControl "180+2"]
[Date "2023.03.28"]
[WhiteClock "0:00:01"]
[BlackClock "0:00:13"]

1. e4 {[%clk 0:03:00]}  c6 {[%clk 0:02:59]} 2. Nf3 {[%clk 0:02:59]}  d5 {[%clk 0:03:00]} 3. Nc3 {[%clk 0:02:58]}  a6 {[%clk 0:03:01]} 4. d4 {[%clk 0:02:47]}  Bg4 {[%clk 0:02:59]} 5. h3 {[%clk 0:02:34]}  Bh5 {[%clk 0:02:56]} 6. Bd3 {[%clk 0:02:20]}  e6 {[%clk 0:02:55]} 7. g4 {[%clk 0:02:16]}  Bg6 {[%clk 0:02:55]} 8. Ne5 {[%clk 0:02:17]}  Nf6 {[%clk 0:02:51]} 9. Nxg6 {[%clk 0:02:16]}  hxg6 {[%clk 0:02:52]} 10. e5 {[%clk 0:02:17]}  Nfd7 {[%clk 0:02:52]} 11. Ne2 {[%clk 0:02:15]}  c5 {[%clk 0:02:47]} 12. c3 {[%clk 0:02:15]}  Nc6 {[%clk 0:02:47]} 13. Be3 {[%clk 0:02:07]}  Qb6 {[%clk 0:02:45]} 14. Rb1 {[%clk 0:01:45]}  cxd4 {[%clk 0:02:41]} 15. cxd4 {[%clk 0:01:45]}  Nb4 {[%clk 0:02:39]} 16. a3 {[%clk 0:01:45]}  Nxd3+ {[%clk 0:02:39]} 17. Qxd3 {[%clk 0:01:46]}  Rc8 {[%clk 0:02:35]} 18. Kf1 {[%clk 0:01:43]}  Be7 {[%clk 0:02:18]} 19. Kg2 {[%clk 0:01:43]}  Qb5 {[%clk 0:02:11]} 20. Qxb5 {[%clk 0:01:42]}  axb5 {[%clk 0:02:12]} 21. Rhc1 {[%clk 0:01:33]}  O-O {[%clk 0:02:05]} 22. Nc3 {[%clk 0:01:26]}  b4 {[%clk 0:02:02]} 23. Nb5 {[%clk 0:01:20]}  b3 {[%clk 0:01:29]} 24. Rc3 {[%clk 0:01:14]}  Rxc3 {[%clk 0:00:57]} 25. bxc3 {[%clk 0:01:14]}  Nb6 {[%clk 0:00:54]} 26. Rxb3 {[%clk 0:01:11]}  Nc4 {[%clk 0:00:51]} 27. Na7 {[%clk 0:00:51]}  b6 {[%clk 0:00:45]} 28. Bc1 {[%clk 0:00:50]}  Ra8 {[%clk 0:00:44]} 29. Nb5 {[%clk 0:00:43]}  Ra5 {[%clk 0:00:31]} 30. f4 {[%clk 0:00:42]}  Kf8 {[%clk 0:00:27]} 31. Kf3 {[%clk 0:00:42]}  Ke8 {[%clk 0:00:27]} 32. Kg3 {[%clk 0:00:39]}  Kd7 {[%clk 0:00:27]} 33. h4 {[%clk 0:00:25]}  Kc6 {[%clk 0:00:27]} 34. Nd6 {[%clk 0:00:25]}  Bxd6 {[%clk 0:00:28]} 35. exd6 {[%clk 0:00:25]}  Kxd6 {[%clk 0:00:28]} 36. h5 {[%clk 0:00:23]}  gxh5 {[%clk 0:00:29]} 37. gxh5 {[%clk 0:00:24]}  Ke7 {[%clk 0:00:25]} 38. Kg4 {[%clk 0:00:20]}  Kf6 {[%clk 0:00:25]} 39. Rb4 {[%clk 0:00:12]}  Ra8 {[%clk 0:00:23]} 40. a4 {[%clk 0:00:09]}  Rh8 {[%clk 0:00:20]} 41. Rb5 {[%clk 0:00:10]}  g6 {[%clk 0:00:20]} 42. hxg6 {[%clk 0:00:09]}  Kxg6 {[%clk 0:00:18]} 43. f5+ {[%clk 0:00:09]}  Kf6 {[%clk 0:00:17]} 44. Bg5+ {[%clk 0:00:08]}  Kg7 {[%clk 0:00:18]} 45. fxe6 {[%clk 0:00:06]}  fxe6 {[%clk 0:00:18]} 46. Rb1 {[%clk 0:00:06]}  Rh2 {[%clk 0:00:16]} 47. Re1 {[%clk 0:00:05]}  Rg2+ {[%clk 0:00:16]} 48. Kh5 {[%clk 0:00:05]}  Rh2+ {[%clk 0:00:16]} 49. Kg4 {[%clk 0:00:06]}  Rg2+ {[%clk 0:00:16]} 50. Kh5 {[%clk 0:00:04]}  Kf7 {[%clk 0:00:17]} 51. Rf1+ {[%clk 0:00:04]}  Ke8 {[%clk 0:00:17]} 52. Rf6 {[%clk 0:00:04]}  Kd7 {[%clk 0:00:17]} 53. Rf7+ {[%clk 0:00:04]}  Kc6 {[%clk 0:00:18]} 54. Re7 {[%clk 0:00:03]}  Kd6 {[%clk 0:00:18]} 55. Re8 {[%clk 0:00:03]}  Kd7 {[%clk 0:00:17]} 56. Re7+ {[%clk 0:00:03]}  Kd6 {[%clk 0:00:17]} 57. Re8 {[%clk 0:00:04]}  Rh2+ {[%clk 0:00:18]} 58. Kg6 {[%clk 0:00:03]}  Rc2 {[%clk 0:00:18]} 59. Bf4+ {[%clk 0:00:03]}  Kd7 {[%clk 0:00:18]} 60. Kf7 {[%clk 0:00:03]}  Rf2 {[%clk 0:00:17]} 61. Re7+ {[%clk 0:00:04]}  Kd8 {[%clk 0:00:17]} 62. Kxe6 {[%clk 0:00:04]}  Rxf4 {[%clk 0:00:15]} 63. Rd7+ {[%clk 0:00:04]}  Kc8 {[%clk 0:00:15]} 64. Rxd5 {[%clk 0:00:04]}  Rf3 {[%clk 0:00:14]} 65. Rh5 {[%clk 0:00:01]}  Rxc3 {[%clk 0:00:14]} 66. Kd5 {[%clk 0:00:01]}  Kb7 {[%clk 0:00:13]} 0-1


[Site "https://www.chess.com"]

[Event "Titled Tuesday Blitz March 28 Early 2023"]
[White "Karamsetty, Jeevan"]
[Black "Ismagilov, Damir"]
[WhiteFideId "2025337"]
[BlackFideId "34199982"]
[WhiteElo "2111"]
[BlackElo "2078"]
[Result "0-1"]
[Round "08"]
[TimeControl "180+2"]
[Date "2023.03.28"]
[WhiteClock "0:00:12"]
[BlackClock "0:00:30"]

1. e4 {[%clk 0:03:00]}  e5 {[%clk 0:02:58]} 2. Nf3 {[%clk 0:03:01]}  Nc6 {[%clk 0:02:56]} 3. Bc4 {[%clk 0:03:00]}  d6 {[%clk 0:02:52]} 4. c3 {[%clk 0:02:56]}  Nf6 {[%clk 0:02:49]} 5. O-O {[%clk 0:02:45]}  Be7 {[%clk 0:02:48]} 6. d4 {[%clk 0:02:43]}  O-O {[%clk 0:02:48]} 7. Nbd2 {[%clk 0:02:39]}  exd4 {[%clk 0:02:41]} 8. cxd4 {[%clk 0:02:38]}  d5 {[%clk 0:02:42]} 9. exd5 {[%clk 0:02:22]}  Nxd5 {[%clk 0:02:43]} 10. Nb3 {[%clk 0:02:22]}  Bg4 {[%clk 0:02:39]} 11. h3 {[%clk 0:02:22]}  Bh5 {[%clk 0:02:37]} 12. Be3 {[%clk 0:02:18]}  Bf6 {[%clk 0:02:08]} 13. Be2 {[%clk 0:02:10]}  Nxe3 {[%clk 0:02:04]} 14. fxe3 {[%clk 0:02:09]}  Re8 {[%clk 0:02:05]} 15. Qd3 {[%clk 0:02:00]}  Qe7 {[%clk 0:02:00]} 16. Kf2 {[%clk 0:01:50]}  Nb4 {[%clk 0:01:45]} 17. Qd2 {[%clk 0:01:45]}  Nd5 {[%clk 0:01:25]} 18. g4 {[%clk 0:01:17]}  Bg6 {[%clk 0:01:21]} 19. Bd3 {[%clk 0:00:39]}  Bh4+ {[%clk 0:01:15]} 20. Kg1 {[%clk 0:00:27]}  Nxe3 {[%clk 0:01:14]} 21. Bxg6 {[%clk 0:00:26]}  Nxf1 {[%clk 0:01:08]} 22. Bxh7+ {[%clk 0:00:25]}  Kxh7 {[%clk 0:01:07]} 23. Rxf1 {[%clk 0:00:22]}  Bg3 {[%clk 0:00:51]} 24. Ng5+ {[%clk 0:00:19]}  Kg8 {[%clk 0:00:50]} 25. Rxf7 {[%clk 0:00:16]}  Qe1+ {[%clk 0:00:41]} 26. Qxe1 {[%clk 0:00:15]}  Rxe1+ {[%clk 0:00:42]} 27. Kg2 {[%clk 0:00:15]}  Bh4 {[%clk 0:00:38]} 28. Rf5 {[%clk 0:00:13]}  Re2+ {[%clk 0:00:34]} 29. Kf3 {[%clk 0:00:13]}  Rf2+ {[%clk 0:00:29]} 30. Ke4 {[%clk 0:00:12]}  Re8+ {[%clk 0:00:30]} 0-1


[Site "https://www.chess.com"]